bitfinex-derivatives/quotes_ETHF0:USTF0_20260223
["timestamp","ask_amount","ask_price","bid_price","bid_amount"]
[1771863848281,1.40192996,1891.6,1891.1,1.72463905]
[1771863848486,1.40192996,1891.6,1890.6,1.72463905]
[1771863848683,1.40192996,1891.6,1890.6,1.73005706]
[1771863849084,0.26432,1891.7,1890.6,1.73005706]
[1771863849085,1.65740466,1891.3,1890.6,1.73005706]
[1771863849882,1.65748999,1891.1,1890.4,1.72463905]
[1771863850585,0.26439,1891.1,1890.4,1.72463905]
[1771863850786,1.37004887,1891.5,1890.4,1.72463905]
[1771863851290,1.37436043,1891.5,1890.4,1.73100684]
[1771863851582,1.36405747,1891.3,1890.4,1.73100684]
[1771863851988,1.36405747,1891.1,1890.4,1.73100684]
[1771863853090,0.26438,1891.2,1890.4,1.73100684]
[1771863853091,1.34395373,1890.9,1890.4,1.73100684]
[1771863853382,1.60845705,1891.0,1890.4,1.73100684]
[1771863853682,1.60845705,1891.0,1890.4,0.00636779]
[1771863853891,1.34404705,1891.4,1890.4,1.73100684]
[1771863855089,1.33305136,1891.2,1890.4,1.73100684]
[1771863855684,0.26436,1891.3,1890.4,1.73100684]
[1771863855880,1.33314214,1891.4,1890.4,1.73100684]
[1771863856079,1.59750214,1891.4,1890.4,1.73100684]
[1771863857681,0.00431156,1891.5,1890.4,1.73100684]
[1771863857886,0.00431156,1891.5,1890.6,1.70008614]
[1771863858083,1.3293312,1891.5,1890.6,1.70008614]
[1771863858591,1.31993204,1891.4,1890.6,1.70008614]
[1771863859387,1.58428204,1891.4,1890.6,1.70008614]
[1771863860591,0.26435,1891.4,1890.6,1.70008614]
[1771863861694,1.56709484,1891.4,1890.6,1.70008614]
[1771863861991,0.00431156,1891.5,1890.8,1.79337502]
[1771863862197,0.26429,1891.9,1890.9,1.79337502]
[1771863862390,1.30002775,1891.7,1890.9,1.79337502]
[1771863863089,1.30651252,1891.7,1890.9,1.79337502]
[1771863865998,1.29639375,1891.7,1890.9,1.79337502]
[1771863866892,0.00648477,1891.7,1890.9,1.79337502]
[1771863867896,0.00648477,1891.7,1891.1,1.79337502]
[1771863868089,1.26451343,1892.1,1891.1,1.79337502]
[1771863868287,0.26427,1892.0,1891.1,1.79337502]
[1771863868489,1.46163957,1892.0,1891.1,1.79337502]
[1771863869090,1.46547206,1892.0,1891.1,1.79337502]
[1771863872496,1.46547206,1892.0,1891.3,1.79337502]
[1771863873496,0.26810249,1892.0,1891.3,1.79337502]
[1771863873702,1.44345917,1892.0,1891.3,1.79337502]
[1771863878604,1.44345917,1892.0,1890.9,1.79337502]
[1771863878800,1.44345917,1892.0,1891.0,1.79337502]
[1771863880998,0.26810249,1892.0,1891.0,1.79337502]
[1771863881200,0.26810249,1892.0,1891.2,1.79337502]
[1771863881798,1.44729826,1892.0,1891.3,1.79337502]
[1771863882001,1.44729826,1892.0,1891.4,1.79337502]
[1771863882404,1.44729826,1892.0,1891.4,1.59337502]
[1771863882609,1.44729826,1892.0,1891.3,1.79337502]
[1771863883510,1.36777054,1891.6,1891.0,1.79337502]
[1771863885009,1.69983418,1891.8,1891.0,1.79337502]
[1771863885210,1.96413418,1891.8,1891.0,1.79337502]
[1771863890415,1.73065406,1891.2,1890.5,1.69861576]
[1771863891218,1.73065406,1891.4,1890.5,1.69861576]
[1771863891518,1.73065406,1891.5,1890.5,1.69861576]
[1771863891915,1.99499406,1891.5,1890.5,1.69861576]
[1771863892616,1.73065406,1891.1,1890.4,1.70498355]
[1771863893413,0.26439,1891.2,1890.4,1.70498355]
[1771863893414,1.73065406,1890.9,1890.4,1.70498355]
[1771863894817,1.73065406,1890.9,1890.4,0.00636779]
[1771863895219,1.73065406,1890.9,1890.4,1.70498355]
[1771863895609,1.99506406,1891.0,1890.4,0.00636779]
[1771863895814,1.99506406,1891.0,1890.4,1.70498355]
[1771863898017,1.99506406,1891.0,1890.4,0.00636779]
[1771863898618,1.99506406,1891.0,1890.4,1.70498355]
[1771863900017,1.99506406,1891.0,1890.4,0.00636779]
[1771863901025,1.99506406,1891.0,1890.4,1.70498355]
[1771863901623,1.73065406,1891.3,1890.4,1.70498355]
[1771863902321,1.73065406,1891.1,1890.4,1.70498355]
[1771863905422,1.73065406,1891.9,1890.6,1.69861576]
[1771863905829,1.73065406,1891.9,1890.8,1.69861576]
[1771863906221,0.00383249,1892.0,1891.0,1.69861576]
[1771863906526,1.73065406,1892.4,1891.2,1.69861576]
[1771863906732,1.73065406,1892.2,1891.2,1.69861576]
[1771863907425,1.73465083,1892.2,1891.2,1.69861576]
[1771863907723,1.73065406,1892.6,1891.4,1.69861576]
[1771863908529,1.99482406,1892.8,1891.6,1.69861576]
[1771863908721,2.00079788,1892.8,1891.6,1.69861576]
[1771863910131,0.00597382,1892.8,1891.8,1.69861576]
[1771863910334,0.00597382,1892.8,1891.8,1.70436459]
[1771863910827,0.00597382,1892.8,1892.0,1.69861576]
[1771863911226,1.73065406,1893.1,1892.0,1.69861576]
[1771863912330,1.73522002,1893.1,1892.0,1.69861576]
[1771863916522,1.73522002,1893.1,1891.8,0.00574883]
[1771863916523,1.73522002,1893.1,1892.1,1.69861576]
[1771863917329,1.73065406,1892.9,1892.1,1.69861576]
[1771863917534,1.73065406,1892.5,1891.9,3.029]
[1771863917931,1.73065406,1892.5,1891.8,0.00574883]
[1771863918131,1.56354693,1892.3,1891.5,1.5650095]
[1771863918327,1.56354693,1892.1,1890.5,41.06447]
[1771863918530,1.56354693,1892.1,1891.3,1.5650095]
[1771863919231,1.56354693,1892.1,1891.3,1.5711752]
[1771863920429,1.58723838,1891.9,1891.3,0.0061657]
[1771863920630,1.58723838,1891.7,1890.9,1.62161725]
[1771863921630,0.00492483,1891.7,1890.9,1.62717734]
[1771863922134,1.59216321,1891.7,1890.9,1.62717734]
[1771863923829,0.00492483,1891.7,1890.9,1.62717734]
[1771863926132,1.58723838,1892.1,1890.9,1.62717734]
[1771863926531,1.58723838,1891.9,1890.9,1.62717734]
[1771863926731,1.58723838,1891.7,1890.9,1.62717734]
[1771863927129,1.58723838,1891.3,1890.9,0.00556009]
[1771863927429,0.00579247,1891.3,1890.9,1.62717734]
[1771863927633,1.58723838,1891.6,1890.9,1.62717734]
[1771863927839,1.58723838,1891.8,1890.9,1.62717734]
[1771863928633,1.59265435,1891.8,1890.9,1.62717734]
[1771863929434,0.00541597,1891.8,1890.9,1.62717734]
[1771863929837,1.58723838,1892.2,1891.1,1.62161725]
[1771863931035,1.59199876,1892.2,1891.1,1.62161725]
[1771863932343,0.00476038,1892.2,1891.2,11.50215144]
[1771863932537,0.00476038,1892.2,1891.3,1.62161725]
[1771863934542,1.59199876,1892.2,1891.3,1.62161725]
[1771863935844,1.85624876,1892.2,1891.3,1.62161725]
[1771863936839,1.85624876,1892.2,1891.0,1.62161725]
[1771863936840,1.85150838,1892.0,1891.0,1.62161725]
[1771863937544,1.59199876,1892.2,1891.0,1.62161725]
[1771863938344,1.59199876,1892.2,1891.2,1.62161725]
[1771863944045,0.00476038,1892.2,1891.2,1.62161725]
[1771863944440,1.59199876,1892.2,1891.2,1.62161725]
[1771863947748,1.59199876,1892.2,1891.3,1.51743227]
[1771863948350,1.50128426,1892.0,1891.3,1.51743227]
[1771863949056,0.00476038,1892.2,1891.3,1.51743227]
[1771863952457,1.50604464,1892.2,1891.3,1.51743227]
[1771863954560,1.50604464,1892.2,1891.5,1.51743227]
[1771863954857,1.50604464,1892.2,1891.6,3.029]
[1771863955165,1.50604464,1892.2,1891.6,4.54643227]
[1771863958561,1.50604464,1892.2,1891.6,3.029]
[1771863959663,0.00476038,1892.2,1891.7,1.51743227]
[1771863959868,1.50604464,1892.2,1891.7,1.51743227]
[1771863960364,1.50128426,1892.4,1891.8,1.51743227]
[1771863961662,1.50507294,1892.4,1891.7,4.54643227]
[1771863962062,1.50507294,1892.4,1891.7,3.029]
[1771863962963,1.50507294,1892.4,1891.6,1.51743227]
[1771863963564,1.50128426,1891.9,1891.0,1.51743227]
[1771863964463,1.50128426,1891.7,1890.9,1.52299236]
[1771863964868,1.50128426,1891.5,1890.9,0.00556009]
[1771863966663,1.50128426,1891.5,1890.7,1.51743227]
[1771863967569,1.50128426,1891.5,1890.9,1.51743227]
[1771863968666,1.50128426,1891.4,1890.2,1.51743227]
[1771863968867,1.50128426,1891.4,1890.1,0.26875993]
[1771863968868,1.50128426,1891.7,1890.5,1.51743227]
[1771863969261,1.50128426,1891.7,1890.6,1.51743227]
[1771863969970,1.50128426,1891.7,1890.9,1.51743227]
[1771863970365,1.50128426,1891.7,1891.1,1.51743227]
[1771863971170,1.50128426,1891.7,1891.2,1.51743227]
[1771863971377,1.50128426,1891.9,1891.2,1.51743227]
[1771863971668,1.50128426,1891.7,1890.8,1.51743227]
[1771863974670,1.50128426,1891.7,1890.9,1.51743227]
[1771863975167,1.50128426,1891.7,1890.9,4.15983228]
[1771863975370,1.50128426,1891.7,1891.0,1.51743227]
[1771863975764,1.50128426,1891.7,1891.1,1.51743227]
[1771863976171,1.50128426,1891.9,1891.3,2.64240001]
[1771863976369,1.50128426,1891.9,1891.4,1.51743227]
[1771863977275,1.50128426,1891.9,1890.7,1.51743227]
[1771863977871,1.50128426,1891.9,1891.0,1.35357361]
[1771863978474,1.50128426,1891.9,1891.2,1.35357361]
[1771863978874,1.50128426,1891.9,1891.2,3.99597362]
[1771863979076,1.50128426,1891.9,1891.3,1.35357361]
[1771863980269,1.50128426,1891.9,1890.6,1.34448597]
[1771863980475,1.50128426,1891.9,1890.8,1.34448597]
[1771863980974,1.50128426,1891.9,1891.0,1.34448597]
[1771863983478,1.50128426,1891.9,1891.1,1.34448597]
[1771863984986,1.43455412,1891.5,1890.6,1.34448597]
[1771863985187,1.43455412,1891.5,1890.7,0.387]
[1771863985485,1.69889412,1891.5,1890.2,1.34448597]
[1771863985685,1.69889412,1891.5,1890.1,0.00422993]
[1771863985686,1.69889412,1891.5,1890.3,1.34448597]
[1771863986086,1.43455412,1890.9,1890.1,1.3487159]
[1771863986387,1.43935303,1890.9,1890.1,1.3487159]
[1771863986578,0.00479891,1890.9,1890.4,1.34448597]
[1771863986986,1.43455412,1891.1,1890.7,2.64240001]
[1771863987186,1.43455412,1891.1,1890.5,1.34448597]
[1771863987482,1.43455412,1891.1,1890.6,3.98688598]
[1771863987685,1.43455412,1891.1,1890.6,1.34448597]
[1771863988084,1.44080498,1891.1,1890.7,3.98688598]
[1771863988386,1.44080498,1891.1,1890.7,1.34448597]
[1771863988580,1.44080498,1891.1,1890.8,2.64240001]
[1771863988785,1.44080498,1891.1,1890.7,1.34448597]
[1771863989590,1.44080498,1891.1,1890.2,1.34448597]
[1771863993988,0.00625086,1891.1,1890.2,1.34448597]
[1771863994488,1.44080498,1891.1,1890.2,1.34448597]
[1771863996789,0.00625086,1891.1,1890.4,1.34448597]
[1771863996989,1.43455412,1891.4,1890.5,1.34448597]
[1771863997995,1.44074409,1891.4,1890.5,1.34448597]
[1771863998397,1.43455412,1891.2,1890.4,1.34448597]
[1771864005201,0.00618997,1891.4,1890.4,1.34448597]
[1771864005202,1.44074409,1891.4,1890.4,1.34448597]
[1771864005903,0.00618997,1891.4,1890.6,1.34448597]
[1771864006498,1.43455412,1891.9,1890.8,1.34448597]
[1771864007503,1.43915691,1891.9,1890.8,1.34448597]
[1771864011202,1.43915691,1891.9,1891.0,1.36888206]
[1771864011203,1.32880393,1891.9,1891.0,1.36888206]
[1771864011804,1.32420114,1891.7,1891.0,1.36888206]
[1771864012602,1.32420114,1891.7,1890.6,1.36888206]
[1771864013104,1.32420114,1891.7,1890.8,1.36888206]
[1771864014807,1.32420114,1891.5,1890.8,1.36888206]
[1771864019610,1.32420114,1891.5,1890.3,1.36888206]
[1771864019906,1.32420114,1891.3,1890.4,1.36888206]
[1771864021010,1.32420114,1891.1,1890.2,1.36888206]
[1771864024311,1.32420114,1890.9,1890.2,1.36888206]
[1771864024512,1.32420114,1890.9,1890.1,1.37311199]
[1771864027111,1.32420114,1891.3,1890.1,1.37311199]
[1771864027312,1.32420114,1891.3,1890.3,1.36888206]
[1771864027910,1.32420114,1891.4,1890.5,1.36888206]
[1771864028418,1.32420114,1891.7,1890.5,1.36888206]
[1771864028619,1.32420114,1891.7,1890.7,1.36888206]
[1771864029020,0.00460279,1891.9,1890.9,1.36888206]
[1771864029021,1.32880393,1891.9,1890.9,1.36888206]
[1771864029516,1.32880393,1891.9,1890.8,6.94454266]
[1771864029517,0.00460279,1891.9,1891.1,1.36888206]
[1771864029715,1.32420114,1892.3,1891.1,1.63327206]
[1771864030020,1.32420114,1892.3,1891.3,1.36888206]
[1771864030820,0.0038789,1892.3,1891.3,1.36888206]
[1771864031019,0.26418,1892.7,1891.5,1.36888206]
[1771864031020,1.32420114,1892.7,1891.5,1.36888206]
[1771864031312,1.32420114,1892.9,1891.7,1.36888206]
[1771864031513,1.32420114,1892.9,1891.8,1.36888206]
[1771864031719,1.32420114,1892.9,1891.9,1.36888206]
[1771864032117,1.32420114,1892.7,1891.9,1.37548467]
[1771864035916,1.32420114,1892.7,1891.9,0.00660261]
[1771864036318,1.32420114,1892.7,1891.9,1.37548467]
[1771864038919,1.32420114,1892.7,1891.9,0.00660261]
[1771864039321,1.32420114,1892.7,1891.5,1.34686083]
[1771864040422,1.32420114,1892.7,1891.5,1.35222515]
[1771864045529,1.37790598,1892.9,1891.7,1.27706852]
[1771864045922,1.37790598,1892.9,1891.9,1.27706852]
[1771864046330,0.00525181,1892.9,1892.1,1.27706852]
[1771864046622,1.37265417,1893.7,1892.5,1.27706852]
[1771864046930,1.37265417,1893.7,1892.6,8.04822366]
[1771864047126,1.37265417,1893.7,1892.7,1.27706852]
[1771864047330,1.37265417,1893.9,1892.7,1.27706852]
[1771864047625,1.37827049,1893.9,1892.9,1.27706852]
[1771864047827,1.37827049,1893.9,1892.9,1.28284765]
[1771864048026,0.00561632,1893.9,1893.1,1.27706852]
[1771864049530,1.37827049,1893.9,1893.1,1.27706852]
[1771864050030,1.37265417,1893.6,1892.9,0.00577913]
[1771864050234,1.37265417,1893.5,1891.9,3.31422096]
[1771864050427,1.37265417,1893.5,1892.1,1.27706852]
[1771864050626,1.37265417,1893.5,1892.2,1.27706852]
[1771864051227,1.37265417,1893.5,1892.2,1.28241298]
[1771864052633,1.37265417,1893.5,1892.4,1.27706852]
[1771864054636,1.37265417,1893.5,1892.6,1.27706852]
[1771864055432,1.37265417,1893.8,1892.6,1.27706852]
[1771864055629,1.37265417,1893.8,1892.8,1.27706852]
[1771864056746,1.37827049,1893.9,1893.0,1.27706852]
[1771864059440,1.27827049,1893.9,1893.0,1.27706852]
[1771864060547,1.28406583,1893.9,1893.0,1.27706852]
[1771864060944,1.28406583,1893.9,1892.3,1.27706852]
[1771864060945,1.37265417,1893.7,1892.3,1.27706852]
[1771864061344,1.37265417,1893.7,1892.4,1.27706852]
[1771864061745,1.37265417,1893.7,1892.6,1.27706852]
[1771864064854,1.37265417,1893.7,1892.8,1.27706852]
[1771864066348,1.37844951,1893.9,1893.0,1.27706852]
[1771864066852,0.00579534,1893.9,1893.0,1.27706852]
[1771864067246,0.00579534,1893.9,1893.2,1.27706852]
[1771864067450,1.37265417,1894.2,1893.2,1.27706852]
[1771864068453,1.37681151,1894.2,1893.2,1.27706852]
[1771864068858,1.37681151,1894.2,1893.3,1.2284609]
[1771864069953,1.37681151,1894.2,1893.4,1.2284609]
[1771864072059,0.26384,1895.1,1893.4,1.4925309]
[1771864072257,1.33077117,1895.0,1893.6,1.2284609]
[1771864072760,1.33077117,1894.8,1893.6,1.2284609]
[1771864073159,1.33731811,1894.8,1893.6,1.2325077]
[1771864073458,0.26389,1894.7,1893.6,1.2325077]
[1771864073662,1.33077117,1894.6,1893.6,1.2325077]
[1771864075067,1.33077117,1894.7,1893.8,1.2284609]
[1771864076460,1.33077117,1894.7,1893.6,1.2325077]
[1771864076860,1.33077117,1894.3,1893.6,0.0040468]
[1771864078162,1.33077117,1894.3,1893.6,1.2325077]
[1771864080764,1.33077117,1894.7,1893.6,1.2325077]
[1771864080955,1.33077117,1894.7,1893.8,1.2284609]
[1771864081156,1.33077117,1894.7,1893.7,7.24619952]
[1771864081157,0.00654694,1894.8,1894.0,1.2284609]
[1771864081560,0.00654694,1894.8,1894.2,1.2284609]
[1771864082466,1.33731811,1894.8,1894.2,1.2284609]
[1771864083166,0.00654694,1894.8,1894.2,1.2284609]
[1771864084769,1.33731811,1894.8,1894.2,1.2284609]
[1771864084963,0.00654694,1894.8,1894.2,1.2284609]
[1771864085469,1.33731811,1894.8,1894.2,1.2284609]
[1771864086661,1.33731811,1894.8,1893.7,1.2284609]
[1771864086862,1.33077117,1894.6,1893.7,1.2284609]
[1771864088173,1.33077117,1894.4,1893.6,0.0040468]
[1771864088372,1.33077117,1894.6,1893.7,1.2284609]
[1771864090470,1.33077117,1894.6,1893.6,1.2325077]
[1771864090977,1.33077117,1894.4,1893.6,0.0040468]
[1771864091778,1.33077117,1894.4,1893.6,1.2325077]
[1771864092573,1.33077117,1894.4,1893.6,0.0040468]
[1771864092974,1.33077117,1894.2,1893.6,0.0040468]
[1771864093475,1.33077117,1893.8,1892.8,1.2284609]
[1771864094574,1.33077117,1893.8,1892.8,1.232571]
[1771864094776,1.33077117,1894.2,1893.0,1.2284609]
[1771864095874,1.33077117,1894.0,1893.0,1.2284609]
[1771864097673,1.33077117,1894.0,1893.1,6.7797352]
[1771864097874,1.28969943,1894.2,1893.2,1.24872305]
[1771864106683,1.24638313,1894.4,1893.4,1.20032623]
[1771864110984,1.24638313,1894.4,1893.2,0.26409]
[1771864111283,1.24638313,1893.4,1892.8,0.0041101]
[1771864111583,1.25184529,1893.4,1892.8,1.20443633]
[1771864111885,0.00546216,1893.4,1892.8,1.20443633]
[1771864112482,1.24638313,1893.8,1892.8,1.20443633]
[1771864112687,1.24638313,1894.0,1893.0,1.20032623]
[1771864112883,1.24638313,1894.2,1893.0,1.20032623]
[1771864113186,1.24638313,1894.2,1893.2,1.20032623]
[1771864113486,0.00449334,1894.2,1893.3,6.91531818]
[1771864113689,0.00449334,1894.2,1893.4,1.20032623]
[1771864114187,1.51027313,1894.7,1893.6,1.20032623]
[1771864114592,1.24638313,1894.7,1893.8,1.20032623]
[1771864114885,1.24638313,1895.1,1893.8,1.20032623]
[1771864115093,1.24638313,1895.1,1893.6,6.90274261]
[1771864115094,1.25151578,1895.1,1894.0,1.20032623]
[1771864115489,1.25151578,1895.1,1894.2,1.20032623]
[1771864115684,1.25151578,1895.1,1894.2,1.20588314]
[1771864116383,1.24638313,1895.5,1894.4,1.20032623]
[1771864116779,1.24638313,1895.5,1894.6,1.20032623]
[1771864117380,1.25111614,1895.5,1894.6,1.20032623]
[1771864119491,1.25111614,1895.5,1894.8,1.20032623]
[1771864120886,1.25111614,1895.5,1894.4,1.20032623]
[1771864121791,0.00473301,1895.5,1894.6,1.20032623]
[1771864122087,0.00473301,1895.5,1894.5,6.74513336]
[1771864122088,1.24638313,1896.1,1895.0,1.20032623]
[1771864122991,1.25241302,1896.1,1895.0,1.20032623]
[1771864123684,1.25241302,1896.1,1895.2,1.20032623]
[1771864124585,0.26367,1896.3,1895.2,1.20032623]
[1771864124793,1.24638313,1897.2,1895.6,1.46408623]
[1771864124997,1.24638313,1897.2,1895.9,1.20032623]
[1771864125290,1.50994313,1897.1,1895.9,1.20032623]
[1771864125688,1.51594629,1897.1,1895.9,1.20614295]
[1771864126788,6.48257,1897.4,1895.9,1.20614295]
[1771864127095,0.77809618,1897.5,1896.3,1.20032623]
[1771864127488,0.77809618,1897.5,1896.5,1.20032623]
[1771864127688,1.27687879,1898.0,1896.9,1.19172922]
[1771864127891,1.28276612,1898.0,1896.9,1.19172922]
[1771864128294,1.27687879,1897.8,1896.9,1.19172922]
[1771864128988,1.27687879,1897.8,1896.4,1.19172922]
[1771864129388,1.27687879,1897.8,1896.5,1.19172922]
[1771864129789,1.27687879,1897.6,1896.5,1.19172922]
[1771864134398,1.27687879,1897.4,1896.5,1.19172922]
[1771864134595,1.27687879,1897.4,1896.0,1.19172922]
[1771864135097,1.27687879,1897.2,1896.1,1.19172922]
[1771864136098,1.27687879,1897.2,1896.3,1.19172922]
[1771864136394,0.26347,1897.8,1896.5,1.19172922]
[1771864136395,1.27687879,1897.4,1896.5,1.19172922]
[1771864142094,1.54039879,1897.4,1896.5,1.19172922]
[1771864142903,1.27687879,1897.4,1896.5,1.19172922]
[1771864143097,1.27687879,1897.6,1896.5,1.19172922]
[1771864143304,1.27687879,1897.6,1896.7,1.19172922]
[1771864144205,1.27687879,1897.4,1896.7,1.19172922]
[1771864145805,1.27687879,1897.4,1896.1,1.19172922]
[1771864146194,1.27687879,1897.4,1896.2,1.19172922]
[1771864146605,1.27687879,1897.2,1896.4,1.19172922]
[1771864147003,1.27687879,1897.0,1896.2,1.19172922]
[1771864153011,0.76912172,1897.0,1896.2,1.19172922]
[1771864153305,0.7692044,1896.6,1896.0,1.19172922]
[1771864153510,0.77553961,1896.6,1895.9,1.19754594]
[1771864154308,0.00633521,1896.6,1895.9,1.19754594]
[1771864154712,1.283214,1896.6,1895.9,1.19754594]
[1771864155512,0.00633521,1896.6,1895.9,1.19754594]
[1771864156012,1.27761002,1896.6,1895.9,1.19754594]
[1771864159814,1.54125002,1896.6,1895.9,1.19754594]
[1771864161313,1.27761002,1896.6,1895.9,1.19754594]
[1771864161514,0.00633521,1896.6,1895.9,1.19754594]
[1771864162310,1.24204277,1896.6,1895.9,1.19754594]
[1771864164808,1.22400444,1896.4,1895.7,1.51380238]
[1771864165010,1.22400444,1896.2,1895.5,1.51380238]
[1771864165815,1.22400444,1896.2,1895.5,1.52023147]
[1771864169619,1.17981247,1896.4,1895.5,1.52023147]
[1771864169814,1.18614768,1896.6,1895.5,1.52023147]
[1771864170019,1.18614768,1896.6,1895.6,1.51380238]
[1771864171718,0.00633521,1896.6,1895.8,1.51380238]
[1771864173134,1.1619984,1897.3,1896.0,1.51380238]
[1771864173432,1.1619984,1897.3,1896.2,1.51380238]
[1771864174029,0.0054222,1897.3,1896.4,1.51380238]
[1771864174235,1.16000419,1897.7,1896.4,1.51380238]
[1771864174428,1.16000419,1897.7,1896.6,1.51380238]
[1771864175124,1.16510343,1897.7,1896.6,1.51380238]
[1771864175528,0.00509924,1897.7,1896.8,1.51380238]
[1771864175921,1.17230805,1897.7,1896.8,1.51380238]
[1771864176322,1.17230805,1897.7,1896.9,6.92753116]
[1771864176526,0.00509924,1897.7,1897.0,1.51380238]
[1771864177328,1.16180319,1897.7,1897.0,1.51380238]
[1771864178131,1.17617564,1897.7,1897.0,1.51380238]
[1771864183833,1.17551878,1897.5,1896.9,0.00390825]
[1771864184837,1.17551878,1897.5,1896.9,1.51771063]
[1771864185231,0.26349,1897.6,1896.9,1.51771063]
[1771864185439,1.17030613,1897.7,1896.9,1.51771063]
[1771864185440,0.00509924,1897.7,1896.9,1.51771063]
[1771864188340,1.16320888,1897.7,1896.9,1.51771063]
[1771864188540,0.00509924,1897.7,1896.9,1.51771063]
[1771864190043,1.15930939,1897.7,1896.9,1.51771063]
[1771864193247,0.00509924,1897.7,1896.9,1.51771063]
[1771864195445,0.26343,1898.0,1896.9,1.51771063]
[1771864196046,1.40159604,1898.0,1896.9,1.51771063]
[1771864196746,1.40778644,1898.0,1896.9,1.51771063]
[1771864197647,0.0061904,1898.0,1897.1,1.35544329]
[1771864198749,0.0061904,1898.0,1897.3,1.35544329]
[1771864199348,1.12816013,1898.0,1897.3,1.35544329]
[1771864200446,1.15409029,1897.8,1897.1,1.35544329]
[1771864200643,0.0061904,1898.0,1897.1,1.35544329]
[1771864201047,1.15427055,1898.6,1897.3,1.35544329]
[1771864201248,1.14922782,1899.0,1897.6,1.35544329]
[1771864201748,1.14922782,1899.0,1897.8,1.35544329]
[1771864201943,1.15872258,1898.8,1897.8,1.35544329]
[1771864202148,1.42205258,1898.7,1897.8,1.35544329]
[1771864203348,1.14932234,1898.2,1897.4,1.35544329]
[1771864203849,1.46360206,1898.1,1897.0,1.35544329]
[1771864204249,1.19521625,1897.8,1897.0,1.35544329]
[1771864204552,1.19521625,1897.6,1897.0,1.35544329]
[1771864204752,1.19529004,1897.8,1897.0,1.35544329]
[1771864204953,0.26342,1898.2,1897.0,1.35544329]
[1771864204954,1.19529004,1898.1,1897.0,1.35544329]
[1771864205253,1.190343,1898.5,1897.2,1.35544329]
[1771864205443,0.0061195,1898.8,1897.2,1.35544329]
[1771864205444,1.190343,1898.7,1897.4,1.35544329]
[1771864205643,0.0061195,1898.8,1897.7,1.35544329]
[1771864206048,0.0061195,1898.8,1897.9,1.35544329]
[1771864206555,1.22558927,1898.8,1897.9,1.35544329]
[1771864206758,0.0061195,1898.8,1897.9,1.35544329]
[1771864207144,1.22560385,1898.8,1897.9,1.35544329]
[1771864207349,0.0061195,1898.8,1897.9,1.35544329]
[1771864207951,1.26745437,1898.8,1897.9,1.35544329]
[1771864209054,0.0061195,1898.8,1897.9,1.35544329]
[1771864212657,1.2438734,1899.3,1898.1,1.35544329]
[1771864213459,1.24540113,1899.1,1898.1,1.35544329]
[1771864213655,1.25185726,1899.1,1898.1,1.35544329]
[1771864214160,1.28312317,1899.1,1898.1,1.35544329]
[1771864215654,1.30108494,1898.9,1898.1,1.35544329]
[1771864217955,0.00645613,1899.1,1898.1,1.35544329]
[1771864218157,0.063984,1899.8,1898.5,1.27561167]
[1771864218359,1.35540316,1899.8,1898.7,1.27561167]
[1771864219156,1.35964446,1899.8,1898.7,1.28020389]
[1771864219354,1.35964446,1899.8,1898.7,0.00459222]
[1771864219355,1.28679116,1899.5,1898.7,0.00459222]
[1771864219559,1.28679116,1899.3,1898.7,0.00459222]
[1771864219761,1.28679116,1899.3,1897.6,1.35123758]
[1771864219762,1.26309389,1899.1,1897.6,1.35123758]
[1771864219958,1.26266381,1898.9,1897.6,1.35123758]
[1771864220153,1.26266381,1898.9,1897.7,1.35123758]
[1771864220758,1.26266381,1898.9,1897.7,1.35590374]
[1771864221154,0.26329,1899.0,1897.9,1.35123758]
[1771864221455,1.25309972,1899.3,1898.1,1.35123758]
[1771864224969,1.20062149,1899.1,1898.1,1.35123758]
[1771864225567,1.45624675,1899.2,1898.1,1.35123758]
[1771864226569,0.26326,1899.2,1898.1,1.35123758]
[1771864227768,1.441491,1899.2,1898.1,1.35123758]
[1771864236970,1.178231,1899.2,1898.1,1.35123758]
[1771864237568,1.39537845,1899.3,1898.1,1.35123758]
[1771864237967,1.39537845,1899.3,1898.3,1.35123758]
[1771864239477,0.2633,1899.0,1898.3,1.35123758]
[1771864239778,1.11914254,1898.9,1898.3,1.35123758]
[1771864242478,10.83087418,1899.4,1897.7,6.62002274]
[1771864242479,1.10272308,1898.7,1897.9,1.35123758]
[1771864242875,1.10266573,1899.1,1897.9,1.35123758]
[1771864243278,0.26327,1899.2,1898.0,6.97072468]
[1771864243574,1.09815856,1899.5,1898.3,1.35123758]
[1771864244081,1.09815856,1899.5,1898.2,6.61535658]
[1771864244082,1.09815856,1899.5,1898.5,1.35123758]
[1771864244579,1.36139856,1899.5,1898.5,1.35123758]
[1771864244779,1.34554777,1899.5,1898.5,1.35123758]
[1771864245885,0.26324,1899.5,1898.5,1.35123758]
[1771864246779,1.05557353,1899.6,1898.5,1.35123758]
[1771864246979,0.0682253,1899.8,1898.7,1.35123758]
[1771864247376,0.0682253,1899.8,1898.9,1.35123758]
[1771864248377,0.0682253,1899.8,1899.1,1.19681666]
[1771864248583,0.0682253,1899.8,1899.1,1.20143527]
[1771864248782,1.3205154,1900.3,1899.1,1.20143527]
[1771864249083,1.3205154,1900.3,1899.3,1.19681666]
[1771864249381,1.32085812,1900.3,1899.3,1.19681666]
[1771864249581,1.32085812,1900.3,1899.5,1.19681666]
[1771864249781,1.3265368,1900.3,1899.5,1.19681666]
[1771864250080,1.07298899,1900.2,1899.5,1.19681666]
[1771864254385,1.04268794,1900.0,1899.5,1.19681666]
[1771864254582,1.04265214,1899.8,1899.1,1.20143527]
[1771864254984,1.04265214,1899.8,1899.1,0.00461861]
[1771864255683,1.03867613,1899.6,1899.1,0.00461861]
[1771864255883,1.03867613,1899.6,1898.9,1.19681666]
[1771864256381,1.29782408,1900.2,1899.1,1.19681666]
[1771864256581,1.03465089,1900.1,1899.1,1.19681666]
[1771864256774,0.26314,1900.2,1899.1,1.20183903]
[1771864256981,1.29538318,1900.6,1899.3,1.46006666]
[1771864257178,1.29538318,1900.8,1899.3,1.46006666]
[1771864257378,1.29538318,1900.8,1899.5,1.19681666]
[1771864257585,1.55842318,1900.8,1899.5,1.19681666]
[1771864257785,1.55842318,1900.8,1899.7,1.19681666]
[1771864257982,1.5626312,1900.8,1899.7,1.19681666]
[1771864258190,1.28397558,1900.5,1899.7,1.19681666]
[1771864258983,0.26307,1900.6,1899.7,1.19681666]
[1771864259183,1.55845318,1900.6,1899.7,1.19681666]
[1771864260089,1.29538318,1900.6,1899.7,1.19681666]
[1771864260885,1.27150733,1900.4,1899.3,1.19681666]
[1771864261383,1.53048292,1900.3,1899.3,1.19681666]
[1771864262089,1.252301,1900.0,1899.1,1.20183903]
[1771864262290,1.24819419,1899.8,1899.1,1.20183903]
[1771864262485,1.24819419,1899.4,1898.7,1.19681666]
[1771864263283,1.55863318,1899.3,1898.7,1.19681666]
[1771864263582,1.56546136,1899.3,1898.4,1.19681666]
[1771864264292,1.30221136,1899.3,1898.4,1.19681666]
[1771864264590,1.30221136,1899.3,1898.4,1.20245699]
[1771864265285,1.29538318,1899.1,1898.4,1.20245699]
[1771864266185,1.29538318,1899.1,1897.2,0.26353]
[1771864266186,1.29538318,1898.9,1897.2,0.26353]
[1771864266393,1.29538318,1898.5,1897.3,1.19681666]